fUST/lending_fUST_20251206
["ID","MTS","AMOUNT","RATE_DAILY","PERIOD"]
[396426093,1764964314848,-425.6536359,0.0001863,2]
[396426094,1764964314858,-500.0,0.0001863,2]
[396426095,1764964314868,-473.84660814,0.0001863,2]
[396426096,1764964314878,-500.0,0.0001863,2]
[396426097,1764964314888,-608.86,0.0001863,2]
[396426098,1764964314898,-880.35,0.0001863,2]
[396426099,1764964314908,-784.6,0.0001863,2]
[396426100,1764964314918,-500.0,0.0001863,2]
[396426101,1764964314927,-589.81,0.0001863,2]
[396426102,1764964314937,-500.0,0.0001863,2]
[396426103,1764964314947,-500.0,0.0001863,2]
[396426104,1764964314956,-500.0,0.0001863,2]
[396426105,1764964314966,-537.52,0.0001863,2]
[396426106,1764964314975,-1014.04,0.0001863,2]
[396426107,1764964314985,-2220.46,0.0001863,2]
[396426108,1764964314994,-2190.66,0.0001863,2]
[396426109,1764964315004,-1158.75,0.0001863,2]
[396426110,1764964315016,-681.06,0.0001863,2]
[396426111,1764964315025,-500.0,0.0001863,2]
[396426112,1764964315034,-500.0,0.0001863,2]
[396426113,1764964315043,-2115.78,0.0001863,2]
[396426114,1764964315053,-500.0,0.0001863,2]
[396426115,1764964315063,-766.35,0.0001863,2]
[396426116,1764964315072,-966.12,0.0001863,2]
[396426117,1764964315081,-914.28,0.0001863,2]
[396426118,1764964315091,-982.55,0.0001863,2]
[396426119,1764964315103,-183.47297077,0.0001863,2]
[396426120,1764964315112,-500.0,0.0001863,2]
[396426121,1764964315121,-500.0,0.0001863,2]
[396426122,1764964315130,-500.0,0.0001863,2]
[396426123,1764964315140,-936.35,0.0001863,2]
[396426124,1764964315149,-500.0,0.0001863,2]
[396426125,1764964315158,-500.0,0.0001863,2]
[396426126,1764964315167,-500.0,0.0001863,2]
[396426127,1764964315176,-500.0,0.0001863,2]
[396426128,1764964315186,-749.63,0.0001863,2]
[396426129,1764964315195,-1641.15,0.0001863,2]
[396426130,1764964315204,-1076.77,0.0001863,2]
[396426131,1764964315214,-500.0,0.0001863,2]
[396426132,1764964315224,-500.0,0.0001863,2]
[396426133,1764964315233,-500.0,0.0001863,2]
[396426134,1764964315243,-603.68,0.0001863,2]
[396426135,1764964315252,-698.96,0.0001863,2]
[396426136,1764964315262,-1666.18,0.0001863,2]
[396426137,1764964315272,-671.97,0.0001863,2]
[396426138,1764964315281,-502.19,0.0001863,2]
[396426139,1764964315291,-500.0,0.0001863,2]
[396426140,1764964315300,-2087.17,0.0001863,2]
[396426141,1764964315309,-500.0,0.0001863,2]
[396426142,1764964315318,-500.0,0.0001863,2]
[396426143,1764964315327,-516.65,0.0001863,2]
[396426144,1764964315336,-500.0,0.0001863,2]
[396426145,1764964315346,-500.0,0.0001863,2]
[396426146,1764964315355,-2037.83,0.0001863,2]
[396426147,1764964315364,-501.13,0.0001863,2]
[396426148,1764964315374,-500.0,0.0001863,2]
[396426149,1764964315383,-571.62,0.0001863,2]
[396426150,1764964315393,-500.0,0.0001863,2]
[396426151,1764964315402,-1758.23,0.0001863,2]
[396426152,1764964315412,-4101.23,0.0001863,2]
[396426153,1764964315421,-1128.95,0.0001863,2]
[396426154,1764964315431,-2336.08,0.0001863,2]
[396426155,1764964315440,-735.18,0.0001863,2]
[396426156,1764964315449,-656.91,0.0001863,2]
[396426157,1764964315459,-942.22,0.0001863,2]
[396426158,1764964315468,-500.0,0.0001863,2]
[396426159,1764964315477,-606.67,0.0001863,2]
[396426160,1764964315486,-500.0,0.0001863,2]
[396426161,1764964315495,-866.26,0.0001863,2]
[396426162,1764964315505,-580.10240384,0.0001863,2]
[396426163,1764964315515,-500.13,0.0001863,2]
[396426164,1764964315525,-500.0,0.0001863,2]
[396426165,1764964315535,-500.0,0.0001863,2]
[396426166,1764964315545,-500.0,0.0001863,2]
[396426167,1764964315554,-500.0,0.0001863,2]
[396426168,1764964315564,-748.38,0.0001863,2]
[396426169,1764964315576,-784.77,0.0001863,2]
[396426170,1764964315585,-500.0,0.0001863,2]
[396426171,1764964315595,-3000.65,0.0001863,2]
[396426172,1764964315605,-525.35,0.0001863,2]
[396426173,1764964315614,-632.24,0.0001863,2]
[396426174,1764964315623,-500.0,0.0001863,2]
[396426175,1764964315633,-734.19,0.0001863,2]
[396426176,1764964315643,-500.0,0.0001863,2]
[396426177,1764964315652,-500.0,0.0001863,2]
[396426178,1764964315662,-1121.55,0.0001863,2]
[396426179,1764964315672,-4195.91,0.0001863,2]
[396426180,1764964315682,-500.0,0.0001863,2]
[396426181,1764964315691,-1169.87,0.0001863,2]
[396426182,1764964315700,-500.0,0.0001863,2]
[396426183,1764964315710,-500.0,0.0001863,2]
[396426184,1764964315719,-1721.78,0.0001863,2]
[396426185,1764964315728,-797.93,0.0001863,2]
[396426186,1764964315738,-500.0,0.0001863,2]
[396426187,1764964315748,-3352.24,0.0001863,2]
[396426188,1764964315757,-701.25,0.0001863,2]
[396426189,1764964315839,-500.0,0.0001863,2]
[396426190,1764964315849,-1865.02,0.0001863,2]
[396426191,1764964315858,-500.0,0.0001863,2]
[396426192,1764964315867,-547.35,0.0001863,2]
[396426193,1764964315877,-1140.86,0.0001863,2]
[396426194,1764964315887,-1061.3,0.0001863,2]
[396426195,1764964315896,-581.3,0.0001863,2]
[396426196,1764964315905,-561.53,0.0001863,2]
[396426197,1764964315914,-1248.52,0.0001863,2]
[396426198,1764964315923,-500.0,0.0001863,2]
[396426199,1764964315932,-565.64,0.0001863,2]
[396426200,1764964315942,-500.0,0.0001863,2]
[396426201,1764964315951,-1569.73,0.0001863,2]
[396426202,1764964315960,-1818.55,0.0001863,2]
[396426203,1764964315969,-522.2,0.0001863,2]
[396426204,1764964315979,-875.06,0.0001863,2]
[396426205,1764964315988,-320.02499571,0.0001863,2]
[396426206,1764964315997,-500.0,0.0001863,2]
[396426207,1764964316006,-1114.54,0.0001863,2]
[396426208,1764964316019,-500.0,0.0001863,2]
[396426209,1764964316028,-500.0,0.0001863,2]
[396426210,1764964316037,-500.0,0.0001863,2]
[396426211,1764964316045,-1202.31,0.0001863,2]
[396426212,1764964316057,-500.0,0.0001863,2]
[396426213,1764964316066,-1019.58,0.0001863,2]
[396426214,1764964316075,-1283.59,0.0001863,2]
[396426215,1764964316087,-648.36014573,0.0001863,2]
[396426216,1764964316095,-634.90742129,0.0001863,2]
[396426217,1764964316104,-1200.75,0.0001863,2]
[396426218,1764964316114,-506.37,0.0001863,2]
[396426219,1764964316123,-500.0,0.0001863,2]
[396426220,1764964316132,-500.0,0.0001863,2]
[396426221,1764964316142,-1231.58,0.0001863,2]
[396426222,1764964316151,-654.39,0.0001863,2]
[396426223,1764964316160,-506.68,0.0001863,2]
[396426224,1764964316169,-500.0,0.0001863,2]
[396426225,1764964316178,-500.0,0.0001863,2]
[396426226,1764964316188,-1113.91,0.0001863,2]
[396426227,1764964316198,-663.62,0.0001863,2]
[396426228,1764964316207,-753.47,0.0001863,2]
[396426229,1764964316216,-1445.18,0.0001863,2]
[396426230,1764964316225,-500.0,0.0001863,2]
[396426231,1764964316234,-500.0,0.0001863,2]
[396426232,1764964316243,-500.0,0.0001863,2]
[396426233,1764964316252,-780.5,0.0001863,2]
[396426234,1764964316261,-889.08,0.0001863,2]
[396426235,1764964316270,-500.0,0.0001863,2]
[396426236,1764964316280,-2835.2,0.0001863,2]
[396426237,1764964316290,-500.0,0.0001863,2]
[396426238,1764964316299,-500.0,0.0001863,2]
[396426239,1764964316309,-1729.46,0.0001863,2]
[396426240,1764964316319,-1979.46,0.0001863,2]
[396426241,1764964316328,-575.86,0.0001863,2]
[396426242,1764964316337,-1316.03,0.0001863,2]
[396426243,1764964316347,-500.0,0.0001863,2]
[396426244,1764964316356,-1835.34,0.0001863,2]
[396426245,1764964316366,-500.0,0.0001863,2]
[396426246,1764964316376,-908.87,0.0001863,2]
[396426247,1764964316385,-653.14,0.0001863,2]
[396426248,1764964316395,-500.0,0.0001863,2]
[396426249,1764964316405,-557.4,0.0001863,2]
[396426250,1764964316416,-978.78,0.0001863,2]
[396426251,1764964316425,-500.0,0.0001863,2]
[396426252,1764964316434,-236.36940212,0.0001863,2]
[396426253,1764964316446,-1274.81,0.0001863,2]
[396426254,1764964316455,-500.0,0.0001863,2]
[396426255,1764964316465,-500.0,0.0001863,2]
[396426256,1764964316476,-553.53528201,0.0001863,2]
[396426257,1764964316485,-1825.48,0.0001863,2]
[396426258,1764964316494,-1459.61,0.0001863,2]
[396426259,1764964316503,-500.0,0.0001863,2]
[396426260,1764964316513,-500.0,0.0001863,2]
[396426261,1764964316522,-1362.88,0.0001863,2]
[396426262,1764964316531,-2330.6,0.0001863,2]
[396426263,1764964316540,-2129.96,0.0001863,2]
[396426264,1764964316548,-500.0,0.0001863,2]
[396426265,1764964316557,-370.133001,0.0001863,2]
[396426266,1764964316566,-500.0,0.0001863,2]
[396426267,1764964316575,-664.95,0.0001863,2]
[396426268,1764964316585,-1189.18,0.0001863,2]
[396426269,1764964316594,-500.0,0.0001863,2]
[396426270,1764964316603,-989.95,0.0001863,2]
[396426271,1764964316612,-1775.43,0.0001863,2]
[396426272,1764964316621,-1334.27,0.0001863,2]
[396426273,1764964316630,-500.0,0.0001863,2]
[396426274,1764964316640,-500.0,0.0001863,2]
[396426275,1764964316649,-500.0,0.0001863,2]
[396426276,1764964316658,-796.25,0.0001863,2]
[396426277,1764964316668,-500.0,0.0001863,2]
[396426278,1764964316677,-500.0,0.0001863,2]
[396426279,1764964316687,-4147.96,0.0001863,2]
[396426280,1764964316696,-500.0,0.0001863,2]
[396426281,1764964316705,-500.0,0.0001863,2]
[396426282,1764964316715,-677.16,0.0001863,2]
[396426283,1764964316726,-3508.67,0.0001863,2]
[396426284,1764964316735,-3856.98,0.0001863,2]
[396426285,1764964316745,-1405.37,0.0001863,2]
[396426286,1764964316754,-500.0,0.0001863,2]
[396426287,1764964316763,-8546.16,0.0001863,2]
[396426288,1764964316773,-595.52,0.0001863,2]
[396426289,1764964316782,-2012.27,0.0001863,2]
[396426290,1764964316792,-640.42806419,0.0001863,2]
[396426291,1764964316801,-760.14,0.0001863,2]
[396426292,1764964316811,-869.37,0.0001863,2]
[396426293,1764964316820,-2862.43,0.0001863,2]
[396426294,1764964316830,-500.0,0.0001863,2]
[396426295,1764964316839,-500.0,0.0001863,2]
[396426296,1764964316848,-1260.61,0.0001863,2]
[396426297,1764964316858,-27168.59,0.0001863,2]
[396426298,1764964316867,-2573.74,0.0001863,2]
[396426299,1764964316876,-500.0,0.0001863,2]
[396426300,1764964316886,-500.0,0.0001863,2]
[396426301,1764964316895,-1519.74,0.0001863,2]
[396426302,1764964316904,-3739.24,0.0001863,2]
[396426303,1764964316914,-837.97,0.0001863,2]
[396426304,1764964316923,-2210.97,0.0001863,2]
[396426305,1764964316932,-879.68,0.0001863,2]
[396426306,1764964316942,-934.83,0.0001863,2]
[396426307,1764964316951,-1534.0,0.0001863,2]
[396426308,1764964316961,-613.38,0.0001863,2]
[396426309,1764964316971,-1145.34,0.0001863,2]
[396426310,1764964316981,-7737.29,0.0001863,2]
[396426311,1764964316991,-2897.13,0.0001863,2]
[396426312,1764964317001,-2245.52,0.0001863,2]
[396426313,1764964317014,-3989.26,0.0001863,2]
[396426314,1764964317024,-1590.89,0.0001863,2]
[396426315,1764964317034,-4880.82,0.0001863,2]
[396426316,1764964317045,-500.0,0.0001863,2]
[396426317,1764964317056,-500.0,0.0001863,2]
[396426318,1764964317067,-2037.18,0.0001863,2]
[396426319,1764964317076,-500.0,0.0001863,2]
[396426320,1764964317086,-1939.29,0.0001863,2]
[396426321,1764964317095,-500.0,0.0001863,2]
[396426322,1764964317106,-603.68,0.0001863,2]
[396426323,1764964317116,-586.39,0.0001863,2]
[396426324,1764964317126,-500.0,0.0001863,2]
[396426325,1764964317136,-3745.52,0.0001863,2]
[396426326,1764964317145,-1761.7,0.0001863,2]
[396426327,1764964317155,-500.0,0.0001863,2]
[396426328,1764964317164,-500.0,0.0001863,2]
[396426329,1764964317173,-500.0,0.0001863,2]
[396426330,1764964317181,-1154.72,0.0001863,2]
[396426331,1764964317191,-8082.89,0.0001863,2]
[396426332,1764964317200,-808.12,0.0001863,2]
[396426333,1764964317209,-1316.55,0.0001863,2]
[396426334,1764964317218,-1061.67,0.0001863,2]
[396426335,1764964317227,-1179.67,0.0001863,2]
[396426336,1764964317237,-500.0,0.0001863,2]
[396426337,1764964317246,-500.0,0.0001863,2]
[396426338,1764964317255,-500.0,0.0001863,2]
[396426339,1764964317265,-548.83,0.0001863,2]
[396426340,1764964317275,-2735.13,0.0001863,2]
[396426341,1764964317284,-2878.01,0.0001863,2]
[396426342,1764964317294,-500.0,0.0001863,2]
[396426343,1764964317302,-500.0,0.0001863,2]
[396426344,1764964317311,-6762.23,0.0001863,2]
[396426345,1764964317320,-1977.79,0.0001863,2]
[396426346,1764964317330,-500.0,0.0001863,2]
[396426347,1764964317339,-512.63,0.0001863,2]
[396426348,1764964317347,-531.05,0.0001863,2]
[396426349,1764964317357,-690.27,0.0001863,2]
[396426350,1764964317367,-588.28,0.0001863,2]
[396426351,1764964317377,-500.0,0.0001863,2]
[396426352,1764964317386,-500.0,0.0001863,2]
[396426353,1764964317396,-500.0,0.0001863,2]
[396426354,1764964317406,-1011.28,0.0001863,2]
[396426355,1764964317415,-6262.41,0.0001863,2]
[396426356,1764964317428,-500.0,0.0001863,2]
[396426357,1764964317439,-2046.2,0.0001863,2]
[396426358,1764964317448,-500.0,0.0001863,2]
[396426359,1764964317457,-2730.7,0.0001863,2]
[396426360,1764964317468,-776.59,0.0001863,2]
[396426361,1764964317477,-500.0,0.0001863,2]
[396426362,1764964317486,-632.99,0.0001863,2]
[396426363,1764964317495,-9293.72,0.0001863,2]
[396426364,1764964317504,-500.0,0.0001863,2]
[396426365,1764964317513,-500.0,0.0001863,2]
[396426366,1764964317523,-1523.9,0.0001863,2]
[396426367,1764964317532,-2206.65,0.0001863,2]
[396426368,1764964317541,-1216.27,0.0001863,2]
[396426369,1764964317550,-890.47,0.0001863,2]
[396426370,1764964317559,-1517.87,0.0001863,2]
[396426371,1764964317568,-500.0,0.0001863,2]
[396426372,1764964317577,-500.0,0.0001863,2]
[396426373,1764964317586,-678.08,0.0001863,2]
[396426374,1764964317596,-12607.12,0.0001863,2]
[396426375,1764964317606,-1261.52,0.0001863,2]
[396426376,1764964317615,-3411.98,0.0001863,2]
[396426377,1764964317624,-500.0,0.0001863,2]
[396426378,1764964317633,-8433.96,0.0001863,2]
[396426379,1764964317643,-500.0,0.0001863,2]
[396426380,1764964317652,-4594.16,0.0001863,2]
[396426381,1764964317662,-639.2,0.0001863,2]
[396426382,1764964317671,-601.94,0.0001863,2]
[396426383,1764964317680,-500.0,0.0001863,2]
[396426384,1764964317689,-557.9,0.0001863,2]
[396426385,1764964317699,-768.56,0.0001863,2]
[396426386,1764964317709,-564.07,0.0001863,2]
[396426387,1764964317718,-2955.98,0.0001863,2]
[396426388,1764964317727,-1537.53,0.0001863,2]
[396426389,1764964317736,-1822.27,0.0001863,2]
[396426390,1764964317746,-1145.09,0.0001863,2]
[396426391,1764964317755,-1807.2,0.0001863,2]
[396426392,1764964317764,-3671.84,0.0001863,2]
[396426393,1764964317774,-1517.42,0.0001863,2]
[396426394,1764964317783,-1021.51,0.0001863,2]
[396426395,1764964317793,-500.0,0.0001863,2]
[396426396,1764964317803,-500.0,0.0001863,2]
[396426397,1764964317812,-1718.3,0.0001863,2]
[396426398,1764964317821,-15606.7,0.0001863,2]
[396426399,1764964317830,-166.3882429,0.0001863,2]
[396426400,1764964317840,-7505.89,0.0001863,2]
[396426401,1764964317849,-629.93,0.0001863,2]
[396426402,1764964317860,-500.0,0.0001863,2]
[396426403,1764964317869,-4537.01,0.0001863,2]
[396426404,1764964317879,-1160.08,0.0001863,2]
[396426405,1764964317888,-500.0,0.0001863,2]
[396426406,1764964317898,-500.0,0.0001863,2]
[396426407,1764964317908,-6149.82,0.0001863,2]
[396426408,1764964317918,-2978.24,0.0001863,2]
[396426409,1764964317927,-500.0,0.0001863,2]
[396426410,1764964317936,-566.43,0.0001863,2]
[396426411,1764964317945,-1483.55,0.0001863,2]
[396426412,1764964317954,-2769.97,0.0001863,2]
[396426413,1764964317963,-1249.37,0.0001863,2]
[396426414,1764964317972,-500.0,0.0001863,2]
[396426415,1764964317982,-603.32,0.0001863,2]
[396426416,1764964317992,-500.0,0.0001863,2]
[396426417,1764964318002,-1573.31,0.0001863,2]
[396426418,1764964318015,-2626.61,0.0001863,2]
[396426419,1764964318024,-500.0,0.0001863,2]
[396426420,1764964318034,-5057.213907,0.0001863,2]
[396426421,1764964318044,-500.0,0.0001863,2]
[396426422,1764964318054,-4802.09,0.0001863,2]
[396426423,1764964318064,-500.0,0.0001863,2]
[396426424,1764964318073,-999.44,0.0001863,2]
[396426425,1764964318083,-1503.75,0.0001863,2]
[396426426,1764964318093,-19450.21,0.0001863,2]
[396426427,1764964318103,-500.0,0.0001863,2]
[396426428,1764964318112,-1075.02,0.0001863,2]
[396426429,1764964318122,-500.0,0.0001863,2]
[396426430,1764964318131,-500.0,0.0001863,2]
[396426431,1764964318141,-1106.6,0.0001863,2]
[396426432,1764964318150,-500.0,0.0001863,2]
[396426433,1764964318160,-840.72,0.0001863,2]
[396426434,1764964318169,-500.0,0.0001863,2]
[396426435,1764964318180,-1613.52,0.0001863,2]
[396426436,1764964318191,-500.0,0.0001863,2]
[396426437,1764964318201,-518.4,0.0001863,2]
[396426438,1764964318212,-500.0,0.0001863,2]
[396426439,1764964318222,-500.0,0.0001863,2]
[396426440,1764964318231,-3055.31,0.0001863,2]
[396426441,1764964318241,-994.67,0.0001863,2]
[396426442,1764964318251,-247.86946863,0.0001863,2]
[396426443,1764964318260,-500.0,0.0001863,2]
[396426444,1764964318270,-994.61,0.0001863,2]
[396426445,1764964318280,-5779.12,0.0001863,2]
[396426446,1764964318290,-541.54,0.0001863,2]
[396426447,1764964318299,-500.0,0.0001863,2]
[396426448,1764964318309,-2703.83,0.0001863,2]
[396426449,1764964318319,-13490.98,0.0001863,2]
[396426450,1764964318329,-723.64,0.0001863,2]
[396426451,1764964318338,-2375.57,0.0001863,2]
[396426452,1764964318347,-500.0,0.0001863,2]
[396426453,1764964318357,-1855.42,0.0001863,2]
[396426454,1764964318367,-1108.58,0.0001863,2]
[396426455,1764964318376,-981.84,0.0001863,2]
[396426456,1764964318385,-500.0,0.0001863,2]
[396426457,1764964318395,-500.0,0.0001863,2]
[396426458,1764964318404,-8333.33,0.0001863,2]
[396426459,1764964318414,-505.07,0.0001863,2]
[396426460,1764964318423,-3168.21,0.0001863,2]
[396426461,1764964318434,-8522.94,0.0001863,2]
[396426462,1764964318443,-500.0,0.0001863,2]
[396426463,1764964318453,-2974.3,0.0001863,2]
[396426464,1764964318462,-882.76,0.0001863,2]
[396426465,1764964318472,-773.39,0.0001863,2]
[396426466,1764964318482,-500.0,0.0001863,2]
[396426467,1764964318492,-500.0,0.0001863,2]
[396426468,1764964318502,-500.0,0.0001863,2]
[396426469,1764964318512,-500.0,0.0001863,2]
[396426470,1764964318522,-1466.62,0.0001863,2]
[396426471,1764964318531,-500.0,0.0001863,2]
[396426472,1764964318542,-1900.64,0.0001863,2]
[396426473,1764964318551,-5166.32,0.0001863,2]
[396426474,1764964318561,-500.0,0.0001863,2]
[396426475,1764964318571,-559.78,0.0001863,2]
[396426476,1764964318581,-500.0,0.0001863,2]
[396426477,1764964318590,-500.0,0.0001863,2]
[396426478,1764964318600,-579.43,0.0001863,2]
[396426479,1764964318610,-1126.56,0.0001863,2]
[396426480,1764964318620,-531.72,0.0001863,2]
[396426481,1764964318629,-7493.2,0.0001863,2]
[396426482,1764964318639,-1357.94,0.0001863,2]
[396426483,1764964318649,-564.47301889,0.0001863,2]
[396426484,1764964318659,-500.0,0.0001863,2]
[396426485,1764964318669,-2140.67,0.0001863,2]
[396426486,1764964318678,-504.84,0.0001863,2]
[396426487,1764964318688,-1456.29,0.0001863,2]
[396426488,1764964318698,-1852.77,0.0001863,2]
[396426489,1764964318707,-5290.3,0.0001863,2]
[396426490,1764964318717,-500.0,0.0001863,2]
[396426491,1764964318727,-18021.5,0.0001863,2]
[396426492,1764964318736,-5946.49,0.0001863,2]
[396426493,1764964318746,-1141.14,0.0001863,2]
[396426494,1764964318755,-500.0,0.0001863,2]
[396426495,1764964318765,-5755.4,0.0001863,2]
[396426496,1764964318775,-899.33,0.0001863,2]
[396426497,1764964318785,-500.0,0.0001863,2]
[396426498,1764964318795,-500.0,0.0001863,2]
[396426499,1764964318804,-1193.75,0.0001863,2]
[396426500,1764964318814,-500.0,0.0001863,2]
[396426501,1764964318824,-18224.67,0.0001863,2]
[396426502,1764964318835,-2555.22,0.0001863,2]
[396426503,1764964318844,-604.515496,0.0001863,2]
[396426504,1764964318854,-500.0,0.0001863,2]
[396426505,1764964318863,-15992.22,0.0001863,2]
[396426506,1764964318873,-500.0,0.0001863,2]
[396426507,1764964318883,-500.0,0.0001863,2]
[396426508,1764964318892,-2246.86,0.0001863,2]
[396426509,1764964318902,-500.0,0.0001863,2]
[396426510,1764964318911,-500.0,0.0001863,2]
[396426511,1764964318921,-1396.97,0.0001863,2]
[396426512,1764964318931,-699.92,0.0001863,2]
[396426513,1764964318940,-1327.48,0.0001863,2]
[396426514,1764964318949,-3223.39,0.0001863,2]
[396426515,1764964318958,-1347.5,0.0001863,2]
[396426516,1764964318968,-2513.49,0.0001863,2]
[396426517,1764964318977,-667.1,0.0001863,2]
[396426518,1764964318986,-500.0,0.0001863,2]
[396426519,1764964318995,-2175.03,0.0001863,2]
[396426520,1764964319005,-40156.73,0.0001863,2]
[396426521,1764964319017,-906.92,0.0001863,2]
[396426522,1764964319026,-500.0,0.0001863,2]
[396426523,1764964319035,-10167.34,0.0001863,2]
[396426524,1764964319044,-3602.82,0.0001863,2]
[396426525,1764964319055,-500.0,0.0001863,2]
[396426526,1764964319064,-690.39,0.0001863,2]
[396426527,1764964319073,-871.12,0.0001863,2]
[396426528,1764964319083,-570.25,0.0001863,2]
[396426529,1764964319093,-3182.83,0.0001863,2]
[396426530,1764964319103,-500.0,0.0001863,2]
[396426531,1764964319112,-2410.62,0.0001863,2]
[396426532,1764964319122,-500.0,0.0001863,2]
[396426533,1764964319131,-500.0,0.0001863,2]
[396426534,1764964319141,-2260.75,0.0001863,2]
[396426535,1764964319151,-1031.43,0.0001863,2]
[396426536,1764964319161,-500.0,0.0001863,2]
[396426537,1764964319170,-1240.63,0.0001863,2]
[396426538,1764964319179,-500.0,0.0001863,2]
[396426539,1764964319189,-3147.39,0.0001863,2]
[396426540,1764964319198,-535.52,0.0001863,2]
[396426541,1764964319208,-3754.05,0.0001863,2]
[396426542,1764964319217,-2393.17,0.0001863,2]
[396426543,1764964319228,-640.85,0.0001863,2]
[396426544,1764964319239,-700.33,0.0001863,2]
[396426545,1764964319250,-2634.96,0.0001863,2]
[396426546,1764964319261,-500.0,0.0001863,2]
[396426547,1764964319272,-500.0,0.0001863,2]
[396426548,1764964319282,-500.0,0.0001863,2]
[396426549,1764964319292,-3889.17,0.0001863,2]
[396426550,1764964319302,-500.0,0.0001863,2]
[396426551,1764964319311,-786.42,0.0001863,2]
[396426552,1764964319321,-500.0,0.0001863,2]
[396426553,1764964319331,-1453.14,0.0001863,2]
[396426554,1764964319341,-500.0,0.0001863,2]
[396426555,1764964319350,-2259.44,0.0001863,2]
[396426556,1764964319360,-642.0,0.0001863,2]
[396426557,1764964319371,-38000.0,0.000189,3]
[396426558,1764964319380,-33398.78140958,0.000189,3]
[396426559,1764964319389,-38000.0,0.000189,3]
[396426560,1764964319399,-302.8788636,0.000189,2]
[396426561,1764964319410,-500.0,0.00018904,2]
[396426562,1764964319420,-500.0,0.00018904,2]
[396426563,1764964319430,-500.0,0.00018904,2]
[396426564,1764964319439,-495.63235196,0.00018904,2]
[396426565,1764964319450,-500.0,0.00018904,2]
[396426566,1764964319461,-610.31660941,0.00018904,2]
[396426567,1764964319471,-500.0,0.00018904,2]
[396426568,1764964319480,-674.84,0.00018904,2]
[396426569,1764964319490,-759.28,0.00018904,2]
[396426570,1764964319500,-500.0,0.00018904,2]
[396426571,1764964319512,-821.01,0.00018904,2]
[396426572,1764964319523,-3248.83,0.00018904,2]
[396426573,1764964319533,-500.0,0.00018904,2]
[396426574,1764964319543,-500.0,0.00018904,2]
[396426575,1764964319553,-596.14,0.00018904,2]
[396426576,1764964319563,-766.62,0.00018904,2]
[396426577,1764964319574,-677.48,0.00018904,2]
[396426578,1764964319584,-710.03,0.00018904,2]
[396426579,1764964319594,-978.11,0.00018904,2]
[396426580,1764964319604,-500.0,0.00018904,2]
[396426581,1764964319614,-950.77,0.00018904,2]
[396426582,1764964319623,-2195.96,0.00018904,2]
[396426583,1764964319633,-500.0,0.00018904,2]
[396426584,1764964319643,-500.0,0.00018904,2]
[396426585,1764964319652,-831.34,0.00018904,2]
[396426586,1764964319662,-500.0,0.00018904,2]
[396426587,1764964319672,-609.85,0.00018904,2]
[396426588,1764964319681,-1164.68,0.00018904,2]
[396426589,1764964319692,-500.0,0.00018904,2]
[396426590,1764964319702,-500.0,0.00018904,2]
[396426591,1764964319712,-768.78,0.00018904,2]
[396426592,1764964319722,-609.15,0.00018904,2]